fUST/lending_fUST_20250805
["ID","MTS","AMOUNT","RATE_DAILY","PERIOD"]
[377405454,1754382632552,-150.0,0.0002715,2]
[377405456,1754382632563,-151.88,0.00027944,15]
[377405458,1754382632572,-151.88,0.00028044,15]
[377405460,1754382632582,-2250.02435177,0.00028069,9]
[377405462,1754382632592,-246.64513686,0.00028103,2]
[377405464,1754382632602,-161.419464,0.00028203,2]
[377405466,1754382632611,-1236.248753,0.00028229,2]
[377405468,1754382632620,-1000.0,0.00028372,30]
[377405470,1754382632629,-201.467012,0.00028645,2]
[377405472,1754382632639,-1200.0,0.00029374,2]
[377405474,1754382632647,-300.0,0.00029375,2]
[377405476,1754382632657,-300.0,0.00029375,2]
[377405478,1754382632666,-1201.60953558,0.00029375,2]
[377405480,1754382632677,-265.31770726,0.00029375,2]
[377405482,1754382632688,-499.856,0.00029375,2]
[377405484,1754382632699,-578.13243782,0.00029375,2]
[377405487,1754382632714,-1053.86682041,0.00029375,2]
[377405489,1754382632725,-6910.21606323,0.00029375,2]
[377405491,1754382632735,-1742.09254828,0.00029376,11]
[377405493,1754382632747,-507.93180349,0.00029376,11]
[377405495,1754382632760,-218.50012362,0.00029662,2]
[377405498,1754382632770,-160.0,0.00029714,2]
[377405501,1754382632779,-160.0,0.00029714,2]
[377405504,1754382632790,-58.1336061,0.00029744,2]
[377405509,1754382632805,-158.2870844,0.00029744,2]
[377405512,1754382632814,-330.4991512,0.00029744,2]
[377405591,1754382638627,-160.0,0.00029744,2]
[377405592,1754382638636,-160.0,0.00029744,2]
[377405593,1754382638646,-160.0,0.00029744,2]
[377405594,1754382638655,-160.0,0.00029744,2]
[377405595,1754382638665,-461.15695721,0.00029744,2]
[377405596,1754382638675,-160.0,0.00029744,2]
[377405597,1754382638685,-215.21874788,0.00029754,2]
[377405598,1754382638694,-380.94447384,0.00029973,2]
[377405599,1754382638703,-200.0,0.0003054,120]
[377405600,1754382638713,-666.0,0.0003055,2]
[377405601,1754382638722,-1169.73594108,0.00030557,2]
[377405603,1754382638732,-246.64513686,0.00030584,2]
[377405605,1754382638742,-230.0916591,0.00030584,2]
[377405607,1754382638755,-635.09797128,0.000306,30]
[377405609,1754382638766,-284.90202872,0.000306,30]
[377405611,1754382638776,-257.7435978,0.00030639,2]
[377405613,1754382638785,-15695.26468142,0.0003064,2]
[377405615,1754382638798,-10062.06533324,0.0003064,2]
[377405618,1754382638809,-1134.9999536,0.0003064,2]
[377405620,1754382638822,-1074.0,0.0003064,2]
[377405623,1754382638842,-1590109.60877909,0.0003064,2]
[377405625,1754382638854,-190791.17633181,0.0003064,2]
[377405627,1754382638863,-24900.0,0.00030642,2]
[377405628,1754382638873,-160.71,0.00030674,3]
[377405629,1754382638883,-2275.3203943,0.00030678,2]
[377405630,1754382638893,-2250.02435177,0.00030683,14]
[377405631,1754382638902,-4866.16561741,0.00030684,2]
[377405632,1754382638911,-971565.06634252,0.00030684,20]
[377405660,1754382640709,-153.74672521,0.00030639,2]
[377405661,1754382640719,-349.98,0.00030639,2]
[377405663,1754382640729,-63976.29795572,0.00030684,20]
[377405717,1754382706085,150.0,0.00023956,2]
[377405718,1754382748275,1349.97074103,0.000249,2]
[377405719,1754382748354,1349.97074097,0.000249,2]
[377405720,1754382748422,1349.97074097,0.000249,2]
[377405721,1754382748506,1349.97074097,0.000249,2]
[377405722,1754382748597,1349.97074097,0.000249,2]
[377405723,1754382748675,1349.97074097,0.000249,2]
[377405724,1754382748749,1349.97074097,0.000249,2]
[377405725,1754382748823,1349.97074097,0.000249,2]
[377405726,1754382748922,1349.97074097,0.00025455,3]
[377405727,1754382749042,1349.97074097,0.00026762,6]
[377405728,1754382806847,1073.8,0.00030137,120]
[377405729,1754382903351,899.89423044,0.000249,2]
[377405730,1754382903437,899.89423041,0.000249,2]
[377405731,1754382903548,899.89423041,0.000249,2]
[377405732,1754382903723,899.89423041,0.000249,2]
[377405733,1754382903767,282.80729232,0.000249,2]
[377405734,1754382903800,617.08693809,0.000249,2]
[377405735,1754382903858,899.89423041,0.000249,2]
[377405736,1754382903925,899.89423041,0.000249,2]
[377405737,1754382904019,899.89423041,0.000249,2]
[377405738,1754382904094,899.89423041,0.00025455,3]
[377405739,1754382904176,899.89423041,0.00026762,6]
[377405740,1754382991138,200.0,0.00029337,120]
[377405741,1754383053419,621.45019439,0.000249,2]
[377405742,1754383053519,621.45019414,0.000249,2]
[377405743,1754383053594,621.45019414,0.000249,2]
[377405744,1754383053728,621.45019414,0.000249,2]
[377405745,1754383053778,621.45019414,0.000249,2]
[377405746,1754383053867,621.45019414,0.000249,2]
[377405747,1754383054533,621.45019414,0.000249,2]
[377405748,1754383054644,621.45019414,0.000249,2]
[377405749,1754383054905,621.45019414,0.00025455,3]
[377405750,1754383055001,621.45019414,0.00026762,6]
[377405751,1754383178751,-350.0,0.00028069,9]
[377405753,1754383208247,402.63346276,0.000249,2]
[377405754,1754383208331,402.63346276,0.000249,2]
[377405755,1754383208416,402.63346276,0.000249,2]
[377405756,1754383208506,402.63346276,0.000249,2]
[377405757,1754383208602,402.63346276,0.000249,2]
[377405758,1754383208747,402.63346276,0.000249,2]
[377405759,1754383208838,402.63346276,0.000249,2]
[377405760,1754383208916,402.63346276,0.000249,2]
[377405761,1754383209021,402.63346276,0.00025455,3]
[377405762,1754383209140,402.63346276,0.00026762,6]
[377405764,1754383283737,1303.20023654,0.00030137,120]
[377405766,1754383369437,268.4223087,0.000249,2]
[377405767,1754383369527,268.4223085,0.000249,2]
[377405768,1754383369618,268.4223085,0.000249,2]
[377405769,1754383369689,268.4223085,0.000249,2]
[377405770,1754383369765,268.4223085,0.000249,2]
[377405771,1754383369854,268.4223085,0.000249,2]
[377405772,1754383369956,268.4223085,0.000249,2]
[377405773,1754383370195,268.4223085,0.000249,2]
[377405774,1754383370226,268.4223085,0.00025455,3]
[377405775,1754383370256,268.4223085,0.00026762,6]
[377405777,1754383463465,200.63,0.000267,2]
[377405779,1754383508823,161.315177,0.00013699,2]
[377405780,1754383509113,161.315177,0.00021918,2]
[377405781,1754383543360,206.06628465,0.000249,2]
[377405782,1754383543463,206.06628444,0.000249,2]
[377405783,1754383543551,206.06628444,0.000249,2]
[377405784,1754383543864,206.06628444,0.000249,2]
[377405785,1754383543948,206.06628444,0.000249,2]
[377405786,1754383544033,206.06628444,0.000249,2]
[377405787,1754383544124,198.72419456,0.000249,2]
[377405788,1754383544152,7.34208988,0.000249,2]
[377405789,1754383544211,206.06628444,0.00025612,3]
[377405791,1754383586595,183.7762273,0.0002763,120]
[377405793,1754383707236,207.42381661,0.000249,2]
[377405794,1754383707340,207.42381653,0.000249,2]
[377405795,1754383707436,207.42381653,0.000249,2]
[377405796,1754383708918,207.42381653,0.000249,2]
[377405797,1754383709016,207.42381653,0.000249,2]
[377405798,1754383709107,207.42381653,0.000249,2]
[377405799,1754383709199,207.42381653,0.00025336,3]
[377405800,1754383709277,207.42381653,0.00027059,6]
[377405801,1754383824528,150.0,0.0002553,2]
[377405827,1754383837106,-543.50545018,0.00027709,2]
[377405829,1754383837119,-74.61892682,0.00027709,2]
[377405830,1754383837129,-2275.3203943,0.0002805,2]
[377405832,1754383837138,-157.84267823,0.00028682,2]
[377405833,1754383837147,-207.42381653,0.00028782,10]
[377405835,1754383837159,-1200.0,0.00028868,2]
[377405837,1754383837169,-500.0,0.00028869,2]
[377405838,1754383837178,-500.0,0.00028869,2]
[377405840,1754383837188,-500.0,0.00028869,2]
[377405842,1754383837199,-500.0,0.00028869,2]
[377405843,1754383837208,-318.47902211,0.00028869,2]
[377405845,1754383837217,-300.0,0.00028869,2]
[377405846,1754383837226,-300.0,0.00028869,2]
[377405848,1754383837237,-300.0,0.00028869,2]
[377405851,1754383837247,-24900.0,0.0002887,2]
[377405852,1754383837256,-1787.01904686,0.00028939,2]
[377405854,1754383837266,-1023.51894848,0.0002894,2]
[377405856,1754383837275,-11980.9574573,0.0002904,2]
[377405857,1754383837284,-666.0,0.00029496,2]
[377405859,1754383837294,-548.93,0.00029514,2]
[377405860,1754383837304,-593.26599268,0.00029611,2]
[377405862,1754383837314,-500.0,0.00029733,5]
[377405864,1754383837324,-608.48970317,0.00029733,5]
[377405865,1754383837334,-504.89955754,0.00029733,5]
[377405867,1754383837344,-500.0,0.00029733,5]
[377405869,1754383837354,-500.0,0.00029733,5]
[377405870,1754383837364,-200.98986577,0.00029733,5]
[377405872,1754383837374,-524.1944747,0.00029733,5]
[377405873,1754383837383,-500.0,0.00029733,5]
[377405875,1754383837394,-161.315177,0.00030137,2]
[377405877,1754383837413,-500.91764365,0.00030281,5]
[377405879,1754383837429,-1000.0,0.00030281,5]
[377405880,1754383837438,-1523.77789534,0.00030346,2]
[377405882,1754383837450,-207.42381653,0.00030505,14]
[377405884,1754383837459,-160.0,0.00030633,2]
[377405885,1754383837469,-216.4206905,0.00030633,2]
[377405887,1754383837478,-842.25606042,0.00030633,2]
[377405888,1754383837487,-160.0,0.00030652,2]
[377405890,1754383837496,-160.0,0.00030652,2]
[377405891,1754383837506,-231.72586818,0.00030652,2]
[377405893,1754383837515,-187.62,0.00030652,3]
[377405895,1754383837524,-562.9,0.00030652,3]
[377405896,1754383837534,-291.66814695,0.00030661,2]
[377405898,1754383837543,-60423.36639973,0.00030662,20]
[377405900,1754383837559,-13474.5170127,0.00030662,20]
[377405902,1754383837570,-85119.22863608,0.00030662,20]
[377405903,1754383837581,-280.82252398,0.00030662,30]
[377405905,1754383837590,-649.01620164,0.00030662,2]
[377405906,1754383837600,-901.48234512,0.00030662,2]
[377405908,1754383837610,-2920.0,0.00030662,2]
[377405910,1754383837619,-383.59519236,0.00030662,2]
[377405911,1754383837628,-200.78414818,0.00030662,2]
[377405913,1754383837639,-3136.8380815,0.00030662,2]
[377405915,1754383837648,-2340.29003445,0.00030662,2]
[377405916,1754383837657,-2840.16797446,0.00030662,2]
[377405918,1754383837666,-160.0,0.00030678,2]
[377405919,1754383837676,-215.21874788,0.00030678,2]
[377405921,1754383837689,-543.07378034,0.00030824,120]
[377405923,1754383837699,-200.0,0.00031003,120]
[377405924,1754383837708,-420.0,0.0003115,2]
[377405926,1754383837718,-1999.99999901,0.000312,2]
[377405928,1754383837727,-1680.0,0.00031284,3]
[377405929,1754383837736,-250.0,0.00031433,2]
[377405930,1754383837745,-724.8731572,0.00031655,2]
[377405932,1754383837754,-200.0,0.00031755,15]
[377405934,1754383837763,-200.0,0.00031755,15]
[377405937,1754383837772,-200.0,0.00031755,15]
[377405938,1754383837782,-375.24,0.00032022,3]
[377405947,1754383837791,-201.467012,0.00032069,2]
[377405949,1754383837928,-207.42381653,0.00032227,18]
[377405950,1754383837937,-3425.07176425,0.00032483,2]
[377405952,1754383837946,-200.0,0.00032535,120]
[377405953,1754383837956,-1023.51894843,0.00032569,2]
[377405955,1754383837965,-5000.0,0.00032659,4]
[377405956,1754383837974,-562.0,0.0003287,120]
[377405958,1754383837984,-500.0,0.00032873,5]
[377405960,1754383837993,-500.0,0.00032873,5]
[377405961,1754383838002,-500.0,0.00032873,5]
[377405963,1754383838011,-501.552296,0.00032873,5]
[377405964,1754383838022,-501.43339771,0.00032873,3]
[377405966,1754383838032,-500.0,0.00032873,5]
[377405968,1754383838042,-505.4876256,0.00032873,5]
[377405969,1754383838052,-500.0,0.00032873,5]
[377405971,1754383838062,-500.0,0.00032873,5]
[377405972,1754383838072,-530.84321249,0.00032873,5]
[377405974,1754383838082,-500.0,0.00032873,5]
[377405975,1754383838091,-500.0,0.00032873,5]
[377405976,1754383838102,-13219.4102726,0.00032873,2]
[377405977,1754383838112,-3971.38,0.00032876,120]
[377405978,1754383838122,-562.0,0.0003288,120]
[377405979,1754383838132,-562.0,0.0003289,120]
[377405980,1754383838143,-9789.56904719,0.0003289,2]
[377406001,1754383838641,-1552.15,0.0003289,2]
[377406002,1754383838653,-4533.80382641,0.0003289,2]
[377406005,1754383838664,-1211.26238777,0.0003289,2]
[377406007,1754383838676,-3242.72431476,0.0003289,2]
[377406009,1754383838690,-3144.18313553,0.0003289,2]
[377406011,1754383838702,-48159.72409773,0.0003289,2]
[377406014,1754383838714,-662.53219217,0.0003289,2]
[377406019,1754383838753,-4370.48279894,0.0003289,2]
[377406021,1754383838763,-6611.60773914,0.0003289,2]
[377406023,1754383838773,-1615.01,0.000329,7]
[377406025,1754383838782,-486.15,0.000329,7]
[377406027,1754383838792,-35257.66,0.000329,14]
[377406029,1754383838801,-66623.01,0.000329,14]
[377406031,1754383838810,-160.0,0.00032929,2]
[377406033,1754383838819,-38333.2159003,0.00032963,2]
[377406035,1754383838828,-3305.80386957,0.00032963,2]
[377406037,1754383838837,-500.47511383,0.00032973,5]
[377406039,1754383838846,-500.0,0.00032973,5]
[377406041,1754383838855,-500.74949541,0.00032973,5]
[377406043,1754383838864,-500.0,0.00032973,5]
[377406045,1754383838874,-500.0,0.00032973,5]
[377406047,1754383838883,-150.0,0.00032973,5]
[377406049,1754383838892,-500.0,0.00032973,5]
[377406051,1754383838901,-158.64214305,0.00032973,5]
[377406053,1754383838911,-76666.4318005,0.0003298,2]
[377406055,1754383838920,-6611.60773914,0.0003298,2]
[377406057,1754383838929,-100000.0,0.0003299,2]
[377406059,1754383838939,-450.0,0.00033,120]
[377406061,1754383838949,-724.87315716,0.00033066,2]
[377406063,1754383838958,-500.0,0.00033073,5]
[377406065,1754383838968,-500.0,0.00033073,5]
[377406067,1754383838978,-500.0,0.00033073,5]
[377406069,1754383838987,-500.0,0.00033073,5]
[377406071,1754383838996,-500.0,0.00033073,5]
[377406073,1754383839005,-500.0,0.00033073,5]
[377406075,1754383839015,-500.0,0.00033073,5]
[377406077,1754383839024,-500.0,0.00033073,5]
[377406079,1754383839034,-500.0,0.00033073,5]
[377406081,1754383839043,-500.0,0.00033073,5]
[377406083,1754383839052,-500.0,0.00033073,5]
[377406085,1754383839061,-500.0,0.00033073,5]
[377406087,1754383839070,-503.05874572,0.00033073,5]
[377406089,1754383839079,-500.0,0.00033073,5]
[377406091,1754383839089,-500.0,0.00033073,5]
[377406093,1754383839098,-500.0,0.00033073,5]
[377406095,1754383839107,-500.0,0.00033073,5]
[377406097,1754383839116,-502.06083351,0.00033073,5]
[377406099,1754383839125,-393.43809798,0.00033073,5]
[377406101,1754383839134,-500.0,0.00033073,5]
[377406103,1754383839143,-500.0,0.00033073,2]
[377406105,1754383839153,-38333.2159003,0.00033075,2]
[377406107,1754383839167,-3305.80386957,0.00033075,2]
[377406109,1754383839177,-151.0,0.00033086,2]
[377406111,1754383839186,-151.0,0.00033086,2]
[377406113,1754383839195,-151.0,0.00033086,2]
[377406115,1754383839207,-151.0,0.00033086,2]
[377406117,1754383839216,-151.0,0.00033086,2]
[377406119,1754383839225,-151.0,0.00033086,2]
[377406121,1754383839237,-151.0,0.00033086,2]
[377406123,1754383839246,-151.0,0.00033086,2]
[377406125,1754383839255,-151.0,0.00033086,2]
[377406127,1754383839265,-151.0,0.00033086,2]
[377406129,1754383839274,-151.0,0.00033086,2]
[377406131,1754383839283,-151.0,0.00033086,2]
[377406133,1754383839293,-151.0,0.00033086,2]
[377406135,1754383839302,-151.0,0.00033086,2]
[377406137,1754383839311,-151.0,0.00033086,2]
[377406139,1754383839321,-151.0,0.00033086,2]
[377406141,1754383839331,-151.0,0.00033086,2]
[377406143,1754383839341,-151.0,0.00033086,2]
[377406145,1754383839350,-151.0,0.00033086,2]
[377406147,1754383839360,-151.0,0.00033086,2]
[377406149,1754383839369,-151.0,0.00033086,2]
[377406151,1754383839378,-500.0,0.00033086,2]
[377406153,1754383839388,-300.0,0.00033086,2]
[377406155,1754383839397,-151.0,0.00033086,2]
[377406157,1754383839406,-151.0,0.00033086,2]
[377406159,1754383839415,-151.0,0.00033086,2]
[377406161,1754383839424,-500.0,0.00033086,2]
[377406163,1754383839434,-300.0,0.00033086,2]
[377406165,1754383839443,-151.0,0.00033086,2]
[377406167,1754383839452,-151.0,0.00033086,2]
[377406169,1754383839461,-151.0,0.00033086,2]
[377406171,1754383839470,-250.0,0.00033086,2]
[377406173,1754383839480,-151.0,0.00033086,2]
[377406175,1754383839489,-151.0,0.00033086,2]
[377406177,1754383839500,-300.0,0.00033086,2]
[377406180,1754383839511,-500.0,0.00033086,2]
[377406181,1754383839520,-151.0,0.00033086,2]
[377406184,1754383839529,-151.0,0.00033086,2]
[377406186,1754383839539,-151.0,0.00033086,2]
[377406188,1754383839549,-500.0,0.00033086,2]
[377406190,1754383839559,-300.0,0.00033086,2]
[377406192,1754383839569,-250.0,0.00033086,2]
[377406194,1754383839578,-151.0,0.00033086,2]
[377406196,1754383839587,-151.0,0.00033086,2]
[377406198,1754383839596,-500.0,0.00033086,2]
[377406200,1754383839604,-174.89955901,0.00033086,2]
[377406202,1754383839613,-250.0,0.00033086,2]
[377406204,1754383839622,-151.0,0.00033086,2]
[377406206,1754383839631,-151.0,0.00033086,2]
[377406208,1754383839640,-500.0,0.00033086,2]
[377406210,1754383839649,-250.0,0.00033086,2]
[377406212,1754383839658,-2183.31810187,0.00033086,2]
[377406214,1754383839667,-151.0,0.00033086,2]
[377406216,1754383839676,-151.0,0.00033086,2]
[377406217,1754383839685,-500.0,0.00033086,2]
[377406219,1754383839695,-250.0,0.00033086,2]
[377406221,1754383839704,-151.0,0.00033086,2]
[377406223,1754383839713,-250.0,0.00033086,2]
[377406225,1754383839723,-232.29632925,0.00033086,2]
[377406227,1754383839732,-151.0,0.00033086,2]
[377406229,1754383839741,-252.08147018,0.00033086,2]
[377406231,1754383839750,-500.0,0.00033086,2]
[377406233,1754383839759,-250.0,0.00033086,2]
[377406235,1754383839768,-151.0,0.00033086,2]
[377406237,1754383839777,-500.0,0.00033086,2]
[377406239,1754383839786,-250.0,0.00033086,2]
[377406241,1754383839795,-151.0,0.00033086,2]
[377406243,1754383839805,-500.0,0.00033086,2]
[377406245,1754383839815,-250.0,0.00033086,2]
[377406247,1754383839824,-151.0,0.00033086,2]
[377406249,1754383839833,-500.0,0.00033086,2]
[377406251,1754383839842,-250.0,0.00033086,2]
[377406253,1754383839851,-250.0,0.00033086,2]
[377406255,1754383839860,-151.0,0.00033086,2]
[377406257,1754383839870,-22188.54324152,0.00033086,2]
[377406259,1754383839880,-151.0,0.00033086,2]
[377406261,1754383839889,-151.0,0.00033086,2]
[377406263,1754383839898,-151.0,0.00033086,2]
[377406265,1754383839907,-151.0,0.00033086,2]
[377406267,1754383839917,-151.0,0.00033086,2]
[377406269,1754383839926,-151.0,0.00033086,2]
[377406271,1754383839935,-151.0,0.00033086,2]
[377406273,1754383839944,-151.0,0.00033086,2]
[377406275,1754383839953,-151.0,0.00033086,2]
[377406277,1754383839963,-151.0,0.00033086,2]
[377406279,1754383839972,-195.13104972,0.00033086,2]
[377406281,1754383839982,-151.0,0.00033086,2]
[377406283,1754383839991,-300.0,0.00033086,2]
[377406285,1754383840001,-151.0,0.00033086,2]
[377406287,1754383840010,-300.0,0.00033086,2]
[377406289,1754383840019,-151.0,0.00033086,2]
[377406291,1754383840029,-151.0,0.00033086,2]
[377406293,1754383840038,-319.28609985,0.00033086,2]
[377406295,1754383840047,-151.0,0.00033086,2]
[377406298,1754383840060,-151.0,0.00033086,2]
[377406300,1754383840070,-151.0,0.00033086,2]
[377406302,1754383840079,-151.0,0.00033086,2]
[377406304,1754383840088,-158.26584521,0.00033086,2]
[377406305,1754383840097,-2264.10087164,0.00033141,2]
[377406306,1754383840107,-2347.87260389,0.00033196,2]
[377406308,1754383840116,-2434.74389024,0.00033251,2]
[377406311,1754383840125,-2524.82941417,0.00033306,2]
[377406312,1754383840135,-2618.2481025,0.00033361,2]
[377406314,1754383840144,-2715.12328229,0.00033416,2]
[377406316,1754383840153,-1000.0,0.00033421,5]
[377406318,1754383840166,-500.0,0.00033421,5]
[377406321,1754383840178,-1000.0,0.00033421,5]
[377406322,1754383840187,-500.0,0.00033421,5]
[377406324,1754383840198,-1000.0,0.00033421,5]
[377406326,1754383840207,-1000.0,0.00033421,5]
[377406328,1754383840216,-500.0,0.00033421,5]
[377406330,1754383840225,-153.69797862,0.00033421,5]
[377406332,1754383840237,-2589.57559817,0.00033471,2]
[377406335,1754383840246,-260.0,0.00033477,2]
[377406337,1754383840257,-200.0,0.00033495,120]
[377406339,1754383840266,-250.0,0.00033521,5]
[377406341,1754383840276,-1000.0,0.00033521,5]
[377406343,1754383840285,-200.0,0.000336,120]
[377406345,1754383840295,-213.22464,0.000336,120]
[377406347,1754383840303,-200.0,0.000336,120]
[377406349,1754383840313,-587.0,0.00033612,2]
[377406351,1754383840322,-1000.0,0.00033621,5]
[377406353,1754383840331,-500.0,0.00033621,5]
[377406355,1754383840341,-500.0,0.00033621,5]
[377406357,1754383840350,-1000.0,0.00033621,5]
[377406359,1754383840360,-500.0,0.00033621,5]
[377406360,1754383840369,-1000.0,0.00033621,5]
[377406362,1754383840378,-1000.0,0.00033621,5]
[377406363,1754383840387,-653.0185066,0.00033621,5]
[377406365,1754383840397,-500.0,0.00033621,5]
[377406367,1754383840406,-1000.0,0.00033621,5]
[377406368,1754383840415,-505.79870927,0.00033621,5]
[377406370,1754383840424,-500.0,0.00033621,5]
[377406372,1754383840433,-503.39022341,0.00033621,5]
[377406374,1754383840443,-1000.0,0.00033621,5]
[377406376,1754383840452,-500.0,0.00033621,5]
[377406378,1754383840461,-1000.0,0.00033621,5]
[377406380,1754383840471,-1000.0,0.00033621,2]
[377406382,1754383840480,-203.23431875,0.00033634,2]
[377406384,1754383840489,-38333.2159003,0.00033688,2]
[377406396,1754383840584,-3305.80386957,0.00033688,2]
[377406398,1754383840593,-3971.38,0.00033698,120]
[377406400,1754383840602,-151.0,0.000337,16]
[377406402,1754383840612,-2370.69090677,0.00033823,2]
[377406404,1754383840621,-276.6,0.000339,7]
[377406406,1754383840630,-195.0,0.00033902,3]
[377406408,1754383840639,-207.42381653,0.0003395,21]
[377406410,1754383840648,-500.0,0.00033968,5]
[377406412,1754383840658,-1500.0,0.00033968,5]
[377406414,1754383840667,-536.50230585,0.00033968,5]
[377406416,1754383840676,-1500.0,0.00033968,5]
[377406417,1754383840685,-360.0,0.00034024,2]
[377406419,1754383840694,-350.0,0.00034068,5]
[377406421,1754383840703,-1500.0,0.00034068,5]
[377406423,1754383840712,-1502.57111107,0.00034168,5]
[377406425,1754383840722,-500.0,0.00034168,5]
[377406427,1754383840731,-500.0,0.00034168,5]
[377406429,1754383840740,-505.17341474,0.00034168,5]
[377406431,1754383840750,-1500.0,0.00034168,5]
[377406433,1754383840759,-1000.0,0.00034168,5]
[377406435,1754383840769,-638.96123894,0.00034168,2]
[377406437,1754383840779,-23009.51934145,0.00034455,2]
[377406440,1754383840788,-724.87315716,0.00034478,2]
[377406442,1754383840797,-151.0,0.000345,19]
[377406444,1754383840806,-2000.0,0.00034516,5]
[377406445,1754383840815,-2000.0,0.00034516,5]
[377406447,1754383840825,-3971.38,0.0003452,120]
[377406449,1754383840834,-500.0,0.00034525,2]
[377406451,1754383840843,-500.0,0.00034525,5]
[377406453,1754383840852,-460.0,0.00034572,2]
[377406455,1754383840861,-450.73104502,0.00034616,5]
[377406457,1754383840871,-500.0,0.00034616,5]
[377406459,1754383840881,-200.0,0.0003479,15]
[377406461,1754383840891,-200.0,0.0003479,15]
[377406463,1754383840900,-200.0,0.0003479,15]
[377406465,1754383840909,-240.0,0.0003479,15]
[377406467,1754383840919,-200.0,0.00034844,120]
[377406469,1754383840928,-430.7234783,0.00034871,30]
[377406471,1754383840938,-430.7234783,0.00034871,30]
[377406473,1754383840947,-430.7234783,0.00034871,30]
[377406475,1754383840957,-430.7234783,0.00034871,30]
[377406477,1754383840967,-430.7234783,0.00034871,30]
[377406479,1754383840977,-3305.80386957,0.0003499,2]
[377406481,1754383840986,-10617.41024024,0.00035,2]
[377406483,1754383840996,-150.03939137,0.00035,2]
[377406485,1754383841006,-555.58315392,0.00035064,5]
[377406487,1754383841016,-1000.0,0.00035073,2]
[377406489,1754383841025,-500.0,0.00035073,5]
[377406490,1754383841035,-560.0,0.0003512,2]
[377406491,1754383841045,-153.0,0.00035145,30]
[377406493,1754383841054,-153.0,0.00035145,30]
[377406495,1754383841065,-262.0906476,0.00035145,30]
[377406497,1754383841075,-597.2308651,0.00035145,30]
[377406499,1754383841084,-306.0,0.00035145,30]
[377406500,1754383841094,-153.0,0.00035145,30]
[377406502,1754383841103,-578.9513623,0.00035145,30]
[377406504,1754383841113,-578.9513623,0.00035145,30]
[377406506,1754383841122,-500.0,0.00035173,5]
[377406508,1754383841131,-500.0,0.00035173,5]
[377406510,1754383841140,-500.0,0.00035173,5]
[377406512,1754383841150,-500.59559057,0.00035173,5]
[377406514,1754383841163,-500.0,0.00035173,5]
[377406515,1754383841181,-150.0,0.00035173,3]
[377406517,1754383841190,-3305.80386957,0.0003519,2]
[377406518,1754383841200,-151.0,0.000352,16]
[377406519,1754383841210,-66623.01,0.000352,14]
[377406520,1754383841220,-3971.38,0.00035342,120]
[377406521,1754383841229,-201.467012,0.00035494,2]
[377406522,1754383841238,-2001.60380086,0.000355,14]
[377406523,1754383841248,-200.0,0.000355,120]
[377406524,1754383841257,-200.0,0.000355,120]
[377406525,1754383841266,-548.93,0.00035615,2]
[377406526,1754383841275,-500.0,0.00035621,2]
[377406528,1754383841284,-660.0,0.00035668,2]
[377406530,1754383841294,-9917.41160871,0.0003567,3]
[377406531,1754383841303,-160.3162146,0.0003567,30]
[377406532,1754383841313,-160.3162146,0.0003567,30]
[377406534,1754383841323,-160.3162146,0.0003567,30]
[377406536,1754383841332,-160.3162146,0.0003567,30]
[377406538,1754383841341,-160.3162146,0.0003567,30]
[377406540,1754383841350,-207.42381653,0.00035673,25]